Cogmind - Beta 13 @@@ ROGUE MODE // 2024.04.21 @ 22:29:36 Player: Patryk Z Result: Destroyed by G-50 Soldier with Heavy Laser Performance ------------- Evolutions (4) 2000 Regions Visited (17) 3400 Robots Destroyed (271) 1355 Value Destroyed (11976) 11976 Prototype IDs (33) 660 Alien Tech Used (0) 0 Bonus (4762) 4762 TOTAL SCORE: 24153 Bonus ------- High Alert Combat Kills 2281 Follower Combat Kills 852 Network Hubs Disabled 800 Aligned with FarCom 300 Met Imprinter 300 Met R17 at Cetus 500 Friendly Fire -271 Cogmind --------- Core Integrity 0/850 Matter 125/300 Energy 55/100 System Corruption 60% Temperature Cool (26) Movement Rolling (100) Location -6/Hub_04(d) Parts ------- > --- POWER (1) -------- (None) > --- PROPULSION (5) --- Compact Wheel > --- UTILITY (5) ------ Graphene Brace > --- WEAPON (4) ------- Blade Saw > --- INVENTORY (5) ---- Improved Deuterium Engine Advanced Heat Sink High-capacity Matter Pod (200) Long-range Tractor Beam Peak State ------------ > --- POWER ------------ Reinforced Deuterium Engine > --- PROPULSION ------- Armored Treads Centrium Heavy Treads Centrium Heavy Treads > --- UTILITY ---------- Improved Cooling System Huge Storage Unit Centrium Medium Armor Plating Centrium Medium Armor Plating Centrium Medium Armor Plating > --- WEAPON ----------- Advanced KE Penetrator Advanced KE Penetrator Advanced KE Penetrator Advanced KE Penetrator > --- INVENTORY -------- Improved Deuterium Engine Improved Deuterium Engine Armored Treads Armored Treads Advanced Treads Advanced Treads Centrium Heavy Treads Compact Wheel High-capacity Matter Pod High-capacity Matter Pod Enhanced Optical Array Kinecellerator Improved Medium Armor Plating Improved Medium Armor Plating Graphene Brace Force Field Long-range Tractor Beam Gauss Rifle Coil Gun Heavy Machine Gun Guided Missile Launcher Rocket Array [Rating: 117] Favorites ----------- Power Reinforced Deuterium Engine Engine Reinforced Deuterium Engine Propulsion Armored Treads Treads Armored Treads Leg Aluminum Leg Wheel Compact Wheel Utility Huge Storage Unit Device Improved Cooling System Storage Huge Storage Unit Processor Advanced Targeting Computer Protection Hardened Heavy Armor Plating Weapon Advanced KE Penetrator Energy Gun EM Pulse Gun Ballistic Gun Advanced KE Penetrator Ballistic Cannon Light Cannon Launcher Guided Missile Launcher Slashing Weapon Blade Saw Build | -11 -10 -10 -9 -9 -9 -8 -8 -7 -7 -7 -7 -6 -6 -6 -6 -6 -6 ------- Run | Yrd Mat Min Mat Min Exi Min Mat Fac Low Low Zio Pro Fac Ext Cet Arc Hub Slots Evolved 8 | . . . 2 . . . 2 2 . . . . 2 . . . . Power . | . . . . . . . . . . . . . . . . . . Propulsion 3 | . . . 1 . . . . 1 . . . . 1 . . . . Utility 3 | . . . 1 . . . . 1 . . . . 1 . . . . Weapon 2 | . . . . . . . 2 . . . . . . . . . . Parts Attached 279 | . 20 7 28 6 5 6 4 43 4 4 3 21 13 37 20 2 56 Power 10 | . 1 . 2 . . . . 3 . . . . . . . . 4 Engine 10 | . 1 . 2 . . . . 3 . . . . . . . . 4 Core . | . . . . . . . . . . . . . . . . . . Reactor . | . . . . . . . . . . . . . . . . . . Propulsion 160 | . 7 5 20 4 1 6 3 31 4 4 . 14 7 30 12 . 12 Treads 94 | . 4 3 12 2 1 3 2 18 2 2 . 7 4 16 8 . 10 Leg . | . . . . . . . . . . . . . . . . . . Wheel 66 | . 3 2 8 2 . 3 1 13 2 2 . 7 3 14 4 . 2 Hover . | . . . . . . . . . . . . . . . . . . Flight . | . . . . . . . . . . . . . . . . . . Utility 60 | . 7 1 3 2 4 . . 7 . . . 1 6 2 3 2 22 Device 20 | . 3 . 1 . . . . 1 . . . . 6 . . 2 7 Storage 3 | . 2 . . . 1 . . . . . . . . . . . . Processor 3 | . . . . . . . . 2 . . . . . . . . 1 Hackware . | . . . . . . . . . . . . . . . . . . Protection 34 | . 2 1 2 2 3 . . 4 . . . 1 . 2 3 . 14 Artifact . | . . . . . . . . . . . . . . . . . . Weapon 49 | . 5 1 3 . . . 1 2 . . 3 6 . 5 5 . 18 Energy Gun 1 | . 1 . . . . . . . . . . . . . . . . Energy Cannon . | . . . . . . . . . . . . . . . . . . Ballistic Gun 31 | . 2 . 3 . . . 1 1 . . 1 4 . 3 5 . 11 Ballistic Cannon 8 | . 2 1 . . . . . . . . . 2 . 1 . . 2 Launcher 8 | . . . . . . . . 1 . . 2 . . 1 . . 4 Special Weapon . | . . . . . . . . . . . . . . . . . . Impact Weapon . | . . . . . . . . . . . . . . . . . . Slashing Weapon 1 | . . . . . . . . . . . . . . . . . 1 Piercing Weapon . | . . . . . . . . . . . . . . . . . . Special Melee Weapon . | . . . . . . . . . . . . . . . . . . Unidentified Prototypes 10 | . . . 2 . . . . 1 . . 2 1 . . 3 . 1 Parts Lost 53 | . 1 4 . 2 . . . 2 . . . 1 . 4 1 . 38 Power 3 | . . 1 . . . . . . . . . . . . . . 2 Propulsion 11 | . . 1 . . . . . . . . . . . 1 . . 9 Utility 24 | . . 1 . 2 . . . 2 . . . 1 . 1 1 . 16 Weapon 15 | . 1 1 . . . . . . . . . . . 2 . . 11 Highest Loss Streak 27 | . 1 4 . 1 . . . 2 . . . 1 . 3 1 . 27 To Critical Strikes . | . . . . . . . . . . . . . . . . . . Average Slot Usage (%) 83 | . 98 95 100 100 99 100 72 71 69 69 68 84 92 92 85 80 84 Engine 8 | . 14 12 11 11 11 11 9 6 7 7 7 7 6 6 6 6 6 Treads 21 | . 11 14 23 22 22 22 18 23 23 23 23 23 26 26 20 20 21 Wheel 6 | . 13 13 9 10 11 10 8 6 6 6 7 6 5 5 4 . . Device 2 | . 9 7 . . . . . . . . . . 5 6 6 6 7 Storage 8 | . 14 14 11 11 11 11 9 7 7 7 7 7 6 6 6 6 6 Processor 4 | . . . . . . . . 7 7 7 7 7 6 6 6 6 4 Protection 10 | . 2 4 21 22 21 22 18 9 7 7 7 7 6 6 6 6 10 Ballistic Gun 16 | . 14 14 18 22 22 22 9 6 7 7 6 22 26 24 25 26 25 Ballistic Cannon 1 | . 11 14 3 . . . . . . . . . . 1 . . . Naked Turns . | . . . . . . . . . . . . . . . . . . Heaviest Build 141 | 14 93 93 102 106 108 108 117 130 130 130 130 130 133 134 141 141 141 Greatest Support 180 | 20 20 16 60 16 16 16 16 80 80 16 16 80 100 100 180 180 180 Greatest Overweight (x) 8 | . 5 5 6 6 6 6 7 8 8 8 8 8 8 8 8 . . Average Overweight (x) 5 | . 2 5 5 6 5 6 7 6 7 8 7 7 7 7 6 . . Largest Inventory Capacity 35 | . 25 25 25 25 35 25 25 25 25 25 25 25 25 25 25 25 25 Average Capacity 24 | . 17 25 25 25 25 25 25 25 25 25 25 25 25 25 25 25 24 Most Carried 25 | . 21 22 25 25 25 25 25 25 25 25 25 25 25 25 25 25 25 Average Carried 23 | . 13 21 22 23 24 25 24 24 25 25 24 24 23 24 24 25 22 Final Capacity 25 | 8 25 25 25 25 25 25 25 25 25 25 25 25 25 25 25 25 5 Final Carried 25 | 6 21 20 25 24 25 25 25 25 25 25 25 24 25 25 25 25 4 Class Distribution -------------------- 38% | Gunner 28% | Mutant 15% | Scavenger-Gunner 10% | Scavenger-Tank 6% | Tank Dominant Class ---------------- Mutant | -10/Materials Mutant | -10/Mines Mutant | -9/Materials Mutant | -9/Mines Mutant | -9/Exiles Mutant | -8/Mines Tank | -8/Materials Scavenger-Gunner | -7/Factory Gunner | -7/Lower Caves Gunner | -7/Lower Caves Gunner | -7/Zion Gunner | -6/Proximity Caves Tank | -6/Factory Gunner | -6/Extension Scavenger-Gunner | -6/Cetus Scavenger-Gunner | -6/Archives Scavenger-Tank | -6/Hub_04(d) Resources | -11 -10 -10 -9 -9 -9 -8 -8 -7 -7 -7 -7 -6 -6 -6 -6 -6 -6 ----------- Run | Yrd Mat Min Mat Min Exi Min Mat Fac Low Low Zio Pro Fac Ext Cet Arc Hub Matter Collected 10006 | 200 724 153 663 157 3 140 295 1518 177 135 30 504 228 1479 977 248 2375 Remotely 94 | . . . . . . . . . . . . . 94 . . . . Salvage Created 12059 | . 575 109 856 214 . 71 415 1768 179 152 . 629 239 1181 754 468 4449 Parts 672 | . 35 5 59 15 . 5 30 106 16 10 . 31 9 58 38 23 232 Haulers Intercepted 14 | . 1 . 4 . . . 3 1 . . . . . . . . 5 Recyclers Shooed 7 | . . . 6 . . . 1 . . . . . . . . . . Parts Field Recycled . | . . . . . . . . . . . . . . . . . . Retrieved Matter . | . . . . . . . . . . . . . . . . . . Parts Self-Destructed 65 | . . . . . . . . . 16 10 . 39 . . . . . Prevented . | . . . . . . . . . . . . . . . . . . Kills | -11 -10 -10 -9 -9 -9 -8 -8 -7 -7 -7 -7 -6 -6 -6 -6 -6 -6 ------- Run | Yrd Mat Min Mat Min Exi Min Mat Fac Low Low Zio Pro Fac Ext Cet Arc Hub Combat Hostiles Destroyed 209 | . 16 4 10 5 . 3 3 35 7 4 . 13 4 21 13 4 67 Melee 1 | . . . . . . . . 1 . . . . . . . . . Guns 187 | . 11 1 8 5 . 3 3 34 7 4 . 12 4 20 12 4 59 Cannons 15 | . 5 3 2 . . . . . . . . 1 . 1 1 . 2 AOE 6 | . . . . . . . . . . . . . . . . . 6 Classes Destroyed 20 | . 5 1 5 1 . . 1 5 . . . 1 . . . . 1 Worker 4 | . . . 1 . . . . . . . . . . . . . 3 Builder 12 | . . . 1 . . . 2 2 . . . . . 1 . . 6 Hauler 14 | . 1 . 4 . . . 3 1 . . . . . . . . 5 Recycler 7 | . . . 3 1 . . . . . . . . . . . . 3 Mechanic 2 | . . . 1 . . . . . . . . . . . . . 1 Operator 6 | . 1 . . . . . . . . . . . . . . 4 1 Watcher 17 | . 2 . 3 . . . 2 1 . . . . . 2 2 . 5 Swarmer 42 | . 4 . 3 2 . 2 . 2 7 3 . 5 . 6 2 . 6 Cutter 5 | . . . . . . . . 3 . . . . . . . . 2 Grunt 79 | . 12 2 5 2 . 1 . 19 . . . 4 3 6 3 . 22 Brawler 3 | . . . . . . . 1 . . . . . . . . . 2 Duelist 6 | . . . . 1 . . 1 1 . . . . . . . . 3 Protector 4 | . . . . . . . . . . . . . . . . . 4 Sentry 22 | . . . 2 . . . 1 3 . 1 . . . 5 . 4 6 Demolisher 2 | . . 2 . . . . . . . . . . . . . . . Specialist 5 | . . . . . . . . 2 . . . . . . . . 3 Hunter 8 | . . . . . . . . 1 . . . 3 . 1 . . 3 Programmer 10 | . . . . . . . . 3 . . . . 1 1 . . 5 Heavy 3 | . . . . . . . . 1 . . . . . . . . 2 Behemoth 3 | . . . . . . . . . . . . 1 . 2 . . . Cetus Guard 8 | . . . . . . . . . . . . . . . 8 . . Lightning 9 | . . . . . . . . . . . . . . . . . 9 Best Kill Streak 14 | . 3 2 3 4 . 2 3 8 4 3 . 4 3 5 5 8 14 Combat Bots Only 13 | . 3 2 3 3 . 2 2 7 4 3 . 4 3 4 4 3 13 Max Kills in Single Turn 3 | . 1 1 2 1 . 1 1 2 1 1 . 2 1 2 1 1 3 Gunslinging 1 | . . . . . . . . . . . . 1 . . . . 1 Exploded 2 | . . . . . . . . . . . . . . . . . 2 Melee 1 | . . . . . . . . 1 . . . . . . . . . Uniques/NPCs Destroyed . | . . . . . . . . . . . . . . . . . . Combat | -11 -10 -10 -9 -9 -9 -8 -8 -7 -7 -7 -7 -6 -6 -6 -6 -6 -6 -------- Run | Yrd Mat Min Mat Min Exi Min Mat Fac Low Low Zio Pro Fac Ext Cet Arc Hub Hostile Shots Fired 1281 | . 101 14 65 37 . 9 . 130 14 13 . 78 10 181 70 18 541 Missed 315 | . 29 1 16 8 . 2 . 35 4 4 . 24 1 55 17 4 115 Damage Taken 18486 | . 738 507 470 336 . 100 31 1618 143 109 . 1039 152 1877 1300 337 9729 Core 1385 | . 127 13 33 60 . 36 . 188 . 12 . 54 . 90 68 28 676 Absorbed by Shields 193 | . . . . . . . . . . . . . . 21 . . 172 Reduced by Siege Mode 599 | . . . . . . . . . . . . . . . 37 18 544 Redirected to Shielding 203 | . 3 . 32 15 . . . . . . . . . . . . 153 Ignored by Resistances 114 | . . . . . . . . . . . . . . 114 . . . Regen/Repaired (Parts) 94 | . . . . . . . . . . . 94 . . . . . . Core Remaining (%) 74 | 100 . 44 . . . 67 100 . . . . 63 . . . . . Volleys Fired 570 | . 68 8 69 18 . 5 17 74 8 6 . 23 9 74 37 22 132 Largest 4 | . 2 2 2 2 . 2 1 1 1 1 . 4 4 4 4 4 4 Hottest 164 | . 60 55 58 46 . 46 60 60 60 60 . 116 80 121 140 140 164 Shots Fired 1489 | . 136 16 123 36 . 10 17 74 8 6 . 78 36 284 148 57 460 Gun 1375 | . 102 8 104 36 . 10 17 74 8 6 . 70 36 276 130 57 441 Cannon 100 | . 34 8 19 . . . . . . . . 8 . 6 18 . 7 Launcher 14 | . . . . . . . . . . . . . . 2 . . 12 Special . | . . . . . . . . . . . . . . . . . . Kinetic 1460 | . 121 16 123 36 . 10 17 74 8 6 . 78 36 282 148 57 448 Thermal . | . . . . . . . . . . . . . . . . . . Explosive 14 | . . . . . . . . . . . . . . 2 . . 12 Electromagnetic 15 | . 15 . . . . . . . . . . . . . . . . Robot Hit Streak 31 | . 14 5 28 20 . 4 9 20 6 10 . 11 22 27 21 9 31 Robot Miss Streak 8 | . 3 3 2 2 . 2 8 5 4 6 . 3 2 3 3 2 3 Penetration Max 1 | . . . . . . . . . . . . . . 1 1 1 1 Secondary Targets 32 | . . . . 2 . 1 . . . . . 5 . 4 3 . 17 Max Gunslinging Chain 2 | . . . . 1 . 1 . . . . . 2 . 1 1 . 1 Shots Hit Robots 1092 | . 92 9 92 27 . 6 14 73 7 5 . 54 26 213 113 36 325 Core Hits 603 | . 33 7 30 9 . 3 13 71 7 5 . 31 8 65 49 18 254 Critical Kills 32 | . . . . . . . . . . . . . . . 4 4 24 Critical Parts Destroyed 41 | . 1 . . . . . . . . . . . . . 4 1 35 Critical Strikes 81 | . 3 . 2 . . . . . . . . 1 . . 9 6 60 Destroy 75 | . 1 . . . . . . . . . . . . . 8 6 60 Blast 5 | . 1 . 2 . . . . . . . . 1 . . 1 . . Corrupt 1 | . 1 . . . . . . . . . . . . . . . . Melee Attacks . | . . . . . . . . . . . . . . . . . . Impact . | . . . . . . . . . . . . . . . . . . Slashing . | . . . . . . . . . . . . . . . . . . Piercing . | . . . . . . . . . . . . . . . . . . Sneak Attacks . | . . . . . . . . . . . . . . . . . . Combat Hostiles . | . . . . . . . . . . . . . . . . . . Follow-up Attacks . | . . . . . . . . . . . . . . . . . . Damage Inflicted 31717 | . 1179 135 1485 430 . 91 780 4637 209 214 . 1314 605 4315 2758 967 12598 Guns 26333 | . 772 65 1277 430 . 91 780 4621 209 214 . 1125 605 4258 2366 967 8553 Cannons 1507 | . 370 70 202 . . . . . . . . 189 . 57 392 . 227 Explosions 3803 | . 36 . . . . . . . . . . . . . . . 3767 Melee . | . . . . . . . . . . . . . . . . . . Ramming 74 | . 1 . 6 . . . . 16 . . . . . . . . 51 Kinetic 27679 | . 981 135 1479 430 . 91 780 4621 209 214 . 1314 605 4315 2758 967 8780 Thermal 36 | . 36 . . . . . . . . . . . . . . . . Explosive 3634 | . . . . . . . . . . . . . . . . . 3634 Electromagnetic 294 | . 161 . . . . . . . . . . . . . . . 133 Impact . | . . . . . . . . . . . . . . . . . . Slashing . | . . . . . . . . . . . . . . . . . . Piercing . | . . . . . . . . . . . . . . . . . . Highest Corruption 60 | . . . . . . . . 1 . . . . . 1 1 1 60 Average Corruption 9 | . . . . . . . . 1 . . . . . 1 1 1 15 Corruption Purged 2 | . . . . . . . . 1 . . . . . . . 1 . Corruption Blocked . | . . . . . . . . . . . . . . . . . . Effects 105 | . . . . . . . . 8 . . . . . 2 6 1 88 Message Errors 19 | . . . . . . . . 3 . . . . . . 3 . 13 Matter Fused 27 | . . . . . . . . 2 . . . . . 1 2 . 22 Heat Flow Errors 9 | . . . . . . . . 1 . . . . . 1 . . 7 Energy Discharges 10 | . . . . . . . . 1 . . . . . . . . 9 Parts Rejected 2 | . . . . . . . . . . . . . . . 1 . 1 Parts Fused 1 | . . . . . . . . . . . . . . . . . 1 Data Loss (minor) 12 | . . . . . . . . . . . . . . . . 1 11 Misfires 3 | . . . . . . . . . . . . . . . . . 3 Alerts 1 | . . . . . . . . 1 . . . . . . . . . Weapon Failures 21 | . . . . . . . . . . . . . . . . . 21 Overload Shots . | . . . . . . . . . . . . . . . . . . Overflow Damage 33 | . . . 1 . . . . . . . . 1 . . . . 31 Projectiles 2 | . . . 1 . . . . . . . . 1 . . . . . Explosions 31 | . . . . . . . . . . . . . . . . . 31 Melee . | . . . . . . . . . . . . . . . . . . Knockbacks 13 | . 4 1 1 . . . . . . . . . . 1 . . 6 Impact 1 | . . . . . . . . . . . . . . . . . 1 Kinetic 11 | . 3 1 1 . . . . . . . . . . 1 . . 5 Secondary 1 | . 1 . . . . . . . . . . . . . . . . Self-Inflicted Damage 741 | . . . . . . . . . . . . . . . . . 741 Shots 21 | . . . . . . . . . . . . . . . . . 21 Rammed 7 | . 1 . 1 . . . . 1 . . . . . . . . 4 Targets Rammed 9 | . 1 . 1 . . . . 2 . . . . . . . . 5 Kicked . | . . . . . . . . . . . . . . . . . . Crushed 2 | . . . . . . . . 1 . . . . . . . . 1 Highest Temperature 464 | . 53 36 4 18 . 15 246 379 184 184 . 350 464 226 136 24 242 Average Temperature 82 | . 16 19 2 6 . 8 86 132 87 78 . 154 203 67 45 6 42 Received Heat Transfer 3977 | . 294 45 123 54 . 36 18 513 . . . 546 63 426 63 54 1742 Effects 6 | . . . . . . . . 1 . . . 4 1 . . . . Shutdowns 2 | . . . . . . . . . . . . 1 1 . . . . Energy Bleed 2 | . . . . . . . . 1 . . . 1 . . . . . Interference 1 | . . . . . . . . . . . . 1 . . . . . Damage (minor) 1 | . . . . . . . . . . . . 1 . . . . . Siege Activations 39 | . . . . . . . . . . . . . . . 3 4 32 Total Turns 631 | . . . . . . . . . . . . . . . 44 45 542 Longest Duration 67 | . . . . . . . . . . . . . . . 25 21 67 Robots Corrupted 1 | . 1 . . . . . . . . . . . . . . . . Combat Hostiles . | . . . . . . . . . . . . . . . . . . Parts Fried 1 | . . . . . . . . . . . . . . . . . 1 Impact Corruptions . | . . . . . . . . . . . . . . . . . . Robots Melted . | . . . . . . . . . . . . . . . . . . Combat Hostiles . | . . . . . . . . . . . . . . . . . . Parts Melted 1 | . . . . . . . . . . . . . . . . . 1 Heat Transferred . | . . . . . . . . . . . . . . . . . . Parts Sabotaged 3 | . . . . . . . . . . . . . . . . . 3 Parts Stolen . | . . . . . . . . . . . . . . . . . . Parts Stripped . | . . . . . . . . . . . . . . . . . . Power Chain Reactions 1 | . 1 . . . . . . . . . . . . . . . . Alert | -11 -10 -10 -9 -9 -9 -8 -8 -7 -7 -7 -7 -6 -6 -6 -6 -6 -6 ------- Run | Yrd Mat Min Mat Min Exi Min Mat Fac Low Low Zio Pro Fac Ext Cet Arc Hub Peak Influence 2419 | . 208 106 282 131 . 213 150 497 . . . . 147 319 333 292 2419 Initial 178 | . . 56 29 36 . . 4 67 . . . . 60 71 178 45 102 Average 291 | . 80 70 146 22 . 114 97 282 . . . . 66 172 213 252 852 Maximum Alert Level 5 | . 1 . 1 . . 1 . 2 . . . . . 1 1 1 5 Low Security (%) 56 | . 99 100 71 100 . 93 100 25 . . . . 100 61 42 19 9 Level 1 26 | . . . 28 . . 6 . 54 . . . . . 38 57 80 20 Level 2 8 | . . . . . . . . 19 . . . . . . . . 22 Level 3 4 | . . . . . . . . . . . . . . . . . 22 Level 4 1 | . . . . . . . . . . . . . . . . . 8 Level 5 2 | . . . . . . . . . . . . . . . . . 15 High Security . | . . . . . . . . . . . . . . . . . . Max Security . | . . . . . . . . . . . . . . . . . . Squads Dispatched 52 | . 4 . 2 . . . 6 11 . . . 1 3 4 1 . 20 Investigation 11 | . 3 . 1 . . . . 1 . . . . . 3 1 . 2 Extermination 8 | . . . . . . . . 3 . . . . 1 . . . 4 Reinforcement 23 | . 1 . 1 . . . 3 7 . . . . 2 1 . . 8 Assault 8 | . . . . . . . 1 . . . . 1 . . . . 6 Garrison 2 | . . . . . . . 2 . . . . . . . . . . Intercept . | . . . . . . . . . . . . . . . . . . Searches Triggered . | . . . . . . . . . . . . . . . . . . Construction Impeded . | . . . . . . . . . . . . . . . . . . Haulers Reinforced 1 | . . . . . . . . . . . . . . . . . 1 Active Scanning Responses . | . . . . . . . . . . . . . . . . . . Cargo Convoy Interrupts 1 | . . . . . . . . 1 . . . . . . . . . Stealth | -11 -10 -10 -9 -9 -9 -8 -8 -7 -7 -7 -7 -6 -6 -6 -6 -6 -6 --------- Run | Yrd Mat Min Mat Min Exi Min Mat Fac Low Low Zio Pro Fac Ext Cet Arc Hub Distress Signals 13 | . 2 . 2 . . . 3 . . . . . . 1 2 . 3 Communications Jammed . | . . . . . . . . . . . . . . . . . . Distress Signals . | . . . . . . . . . . . . . . . . . . Times Spotted 308 | . 31 4 23 6 . 6 8 40 7 4 . 17 5 31 14 7 105 Peak Tracking Total 12 | . 4 2 4 3 . 3 5 5 4 3 . 5 3 4 5 1 12 Tactical Retreats 7 | . 1 . . . . . . . . . . 1 . 1 1 . 3 Traps | -11 -10 -10 -9 -9 -9 -8 -8 -7 -7 -7 -7 -6 -6 -6 -6 -6 -6 ------- Run | Yrd Mat Min Mat Min Exi Min Mat Fac Low Low Zio Pro Fac Ext Cet Arc Hub Traps Triggered 10 | . 1 . . . . . . 4 . . . . . 3 . . 2 Indirectly . | . . . . . . . . . . . . . . . . . . Trap Hack Attempts . | . . . . . . . . . . . . . . . . . . Triggered . | . . . . . . . . . . . . . . . . . . Disarmed . | . . . . . . . . . . . . . . . . . . Reprogrammed . | . . . . . . . . . . . . . . . . . . Reused . | . . . . . . . . . . . . . . . . . . Traps Extracted . | . . . . . . . . . . . . . . . . . . Installed 1 | . . . . . . . . . . 1 . . . . . . . Triggered 4 | . 1 . . . . . . 2 . . . . . . . . 1 Machines | -11 -10 -10 -9 -9 -9 -8 -8 -7 -7 -7 -7 -6 -6 -6 -6 -6 -6 ---------- Run | Yrd Mat Min Mat Min Exi Min Mat Fac Low Low Zio Pro Fac Ext Cet Arc Hub Machines Disabled 60 | . 1 . . . . . 1 5 . . . 1 1 4 1 5 41 Max in Single Turn 11 | . 1 . . . . . 1 1 . . . 1 1 1 1 1 11 Garrison Access 1 | . . . . . . . 1 . . . . . . . . . . Network Hub 4 | . . . . . . . . . . . . . . . . . 4 Machines Repaired . | . . . . . . . . . . . . . . . . . . Machines Dismantled . | . . . . . . . . . . . . . . . . . . Machines Sabotaged . | . . . . . . . . . . . . . . . . . . Overloaded Fab Kills . | . . . . . . . . . . . . . . . . . . Hacking | -11 -10 -10 -9 -9 -9 -8 -8 -7 -7 -7 -7 -6 -6 -6 -6 -6 -6 --------- Run | Yrd Mat Min Mat Min Exi Min Mat Fac Low Low Zio Pro Fac Ext Cet Arc Hub Machines Accessed 61 | . 11 . 5 . 2 . 3 15 3 . . . 4 8 3 . 7 Terminals 40 | . 8 . 3 . . . 2 7 . . . . 3 7 3 . 7 Fabricators 2 | . . . . . . . . 2 . . . . . . . . . Repair Stations 2 | . 1 . . . . . . 1 . . . . . . . . . Recycling Units 7 | . 2 . 1 . . . . 3 . . . . . 1 . . . Scanalyzers 5 | . . . 1 . . . 1 2 . . . . 1 . . . . Garrison Access . | . . . . . . . . . . . . . . . . . . Total Hacks 163 | . 31 . 13 . 2 . 9 48 9 . . . 8 22 9 . 12 Successful 84 | . 20 . 7 . 2 . 5 28 9 . . . . 9 1 . 3 Failed 79 | . 11 . 6 . . . 4 20 . . . . 8 13 8 . 9 Catastrophic 14 | . 1 . . . . . . 1 . . . . 1 4 3 . 4 Database Lockouts . | . . . . . . . . . . . . . . . . . . Manual 115 | . 28 . 13 . 1 . 5 35 . . 5 . 8 10 1 . 9 Terminals 105 | . 21 . 9 . . . 6 26 . . . . 7 15 9 . 12 Fabricators 6 | . . . . . . . . 6 . . . . . . . . . Repair Stations 3 | . 1 . . . . . . 2 . . . . . . . . . Recycling Units 26 | . 9 . 1 . . . . 9 . . . . . 7 . . . Scanalyzers 12 | . . . 3 . . . 3 5 . . . . 1 . . . . Garrison Access . | . . . . . . . . . . . . . . . . . . Terminal Hacks 26 | . 3 . 2 . 2 . 1 6 9 . . . . 2 1 . . Record 13 | . . . . . 1 . . 4 7 . . . . . 1 . . Part Schematic 1 | . 1 . . . . . . . . . . . . . . . . Robot Analysis 3 | . 1 . 1 . . . . 1 . . . . . . . . . Open Door 4 | . . . . . . . . . 2 . . . . 2 . . . Branch Access Points 3 | . . . 1 . . . 1 1 . . . . . . . . . Patrol Navigation 1 | . 1 . . . . . . . . . . . . . . . . Derelict Proto ID Bank 1 | . . . . . 1 . . . . . . . . . . . . Fabricator Hacks . | . . . . . . . . . . . . . . . . . . Repair Station Hacks . | . . . . . . . . . . . . . . . . . . Recycling Unit Hacks 7 | . 3 . . . . . . 2 . . . . . 2 . . . Report Inventory 6 | . 2 . . . . . . 2 . . . . . 2 . . . Retrieve Components 1 | . 1 . . . . . . . . . . . . . . . . Scanalyzer 5 | . . . . . . . 3 2 . . . . . . . . . Insert Component 3 | . . . . . . . 2 1 . . . . . . . . . Analyze 2 | . . . . . . . 1 1 . . . . . . . . . Garrison Access Hacks . | . . . . . . . . . . . . . . . . . . Unauthorized Hacks 46 | . 14 . 5 . . . 1 18 . . . . . 5 . . 3 Terminals 21 | . 7 . 3 . . . 1 6 . . . . . 1 . . 3 Botnet 18 | . 4 . 3 . . . 1 6 . . . . . 1 . . 3 Disrupt 1 | . 1 . . . . . . . . . . . . . . . . Operators 1 | . 1 . . . . . . . . . . . . . . . . Search 1 | . 1 . . . . . . . . . . . . . . . . Fabricators 3 | . . . . . . . . 3 . . . . . . . . . Liberate 1 | . . . . . . . . 1 . . . . . . . . . Fabnet 1 | . . . . . . . . 1 . . . . . . . . . Haulers 1 | . . . . . . . . 1 . . . . . . . . . Repair Stations 2 | . 1 . . . . . . 1 . . . . . . . . . Mechanics 2 | . 1 . . . . . . 1 . . . . . . . . . Recycling Units 18 | . 6 . 1 . . . . 7 . . . . . 4 . . . Monitor 3 | . 1 . . . . . . 1 . . . . . 1 . . . Reject 4 | . 1 . . . . . . 2 . . . . . 1 . . . Recyclers 3 | . 1 . . . . . . 1 . . . . . 1 . . . Mask 5 | . 1 . . . . . . 3 . . . . . 1 . . . Tunnel 3 | . 2 . 1 . . . . . . . . . . . . . . Scanalyzers 2 | . . . 1 . . . . 1 . . . . . . . . . Researchers 2 | . . . 1 . . . . 1 . . . . . . . . . Garrison Access . | . . . . . . . . . . . . . . . . . . Data Cores Recovered 4 | . 1 . . . . . 1 . . . . . . 1 . . 1 Used 1 | . . . . . . . . . . . . . . . . . 1 Hacking Detections 49 | . 7 . 3 . . . 3 15 . . . . 4 7 3 . 7 Full Trace Events 6 | . . . . . . . 1 . . . . . . 3 1 . 1 Feedback Events 1 | . . . . . . . . . . . . . . 1 . . . Corruption 1 | . . . . . . . . . . . . . . 1 . . . Feedback Blocked . | . . . . . . . . . . . . . . . . . . Robot Schematics Acquired 3 | . . . . . . . . . . . 3 . . . . . . Robots Built . | . . . . . . . . . . . . . . . . . . Authchips . | . . . . . . . . . . . . . . . . . . Time . | . . . . . . . . . . . . . . . . . . Total Robot Build Rating . | . . . . . . . . . . . . . . . . . . Part Schematics Acquired 18 | . 1 . . . . . 1 1 . . 15 . . . . . . Parts Built . | . . . . . . . . . . . . . . . . . . Authchips . | . . . . . . . . . . . . . . . . . . Time . | . . . . . . . . . . . . . . . . . . Total Part Build Rating . | . . . . . . . . . . . . . . . . . . Parts Repaired . | . . . . . . . . . . . . . . . . . . Time . | . . . . . . . . . . . . . . . . . . Parts Recycled . | . . . . . . . . . . . . . . . . . . Recycled Matter . | . . . . . . . . . . . . . . . . . . Retrieved Matter . | . . . . . . . . . . . . . . . . . . Retrieved Components 7 | . 7 . . . . . . . . . . . . . . . . Parts Scanalyzed 2 | . . . . . . . 1 1 . . . . . . . . . Part Schematics Acquired 2 | . . . . . . . 1 1 . . . . . . . . . Parts Damaged . | . . . . . . . . . . . . . . . . . . Bothacking | -11 -10 -10 -9 -9 -9 -8 -8 -7 -7 -7 -7 -6 -6 -6 -6 -6 -6 ------------ Run | Yrd Mat Min Mat Min Exi Min Mat Fac Low Low Zio Pro Fac Ext Cet Arc Hub Used RIF Installer . | . . . . . . . . . . . . . . . . . . Robots Hacked 4 | . . . . . . . . . . . . 1 . . . . 3 Non-combat . | . . . . . . . . . . . . . . . . . . Combat 4 | . . . . . . . . . . . . 1 . . . . 3 Robot Hacks Applied . | . . . . . . . . . . . . . . . . . . Relay Couplers Released 3 | . . . . . . . 3 . . . . . . . . . . Machine Destruction 3 | . . . . . . . 3 . . . . . . . . . . Fabnet Peak Effective % 3 | . . . . . . . . . . . . 3 3 3 3 3 3 Autooverrided 4 | . . . . . . . . . . . . 1 . . . . 3 Robots Rewired 7 | . . . . . . . . . . . . . . 7 . . . Allies Hacked . | . . . . . . . . . . . . . . . . . . Hacks Repelled . | . . . . . . . . . . . . . . . . . . Allies | -11 -10 -10 -9 -9 -9 -8 -8 -7 -7 -7 -7 -6 -6 -6 -6 -6 -6 -------- Run | Yrd Mat Min Mat Min Exi Min Mat Fac Low Low Zio Pro Fac Ext Cet Arc Hub Total Allies 25 | . . 3 . 3 . . . 3 . . 2 1 . 10 . . 3 Largest Group 4 | . . 2 1 3 3 3 1 3 . . 2 3 . 4 2 . 1 Highest-Rated Group 112 | . . 45 31 40 40 40 16 48 . . 51 71 . 112 59 . 46 Highest-Rated Ally 46 | . . 31 31 16 16 16 16 16 . . 31 31 . 39 39 . 46 Total Orders 3 | . . . . . . . . . . . . . 1 . . . 2 EXPLORE 3 | . . . . . . . . . . . . . 1 . . . 2 Ally Attacks 166 | . . 1 11 . . 31 22 12 . . . 20 . 58 1 . 10 Total Damage 2318 | . . . 165 . . 263 291 118 . . . 418 . 871 32 . 160 Kills 30 | . . . 5 . . 6 4 1 . . . 5 . 8 . . 1 Allies Corrupted . | . . . . . . . . . . . . . . . . . . Allies Melted . | . . . . . . . . . . . . . . . . . . Turrets Deployed 2 | . . . . . 1 . 1 . . . . . . . . . . Intel | -11 -10 -10 -9 -9 -9 -8 -8 -7 -7 -7 -7 -6 -6 -6 -6 -6 -6 ------- Run | Yrd Mat Min Mat Min Exi Min Mat Fac Low Low Zio Pro Fac Ext Cet Arc Hub Robot Analysis Total 3 | . 1 . 1 . . . . 1 . . . . . . . . . Derelict Logs Recovered 8 | . . . . 2 . . . . . 3 1 2 . . . . . Drone Launches 5 | . . . . . . . . . . . . . 1 . . . 4 Drone Recoveries . | . . . . . . . . . . . . . . . . . . Exploration | -11 -10 -10 -9 -9 -9 -8 -8 -7 -7 -7 -7 -6 -6 -6 -6 -6 -6 ------------- Run | Yrd Mat Min Mat Min Exi Min Mat Fac Low Low Zio Pro Fac Ext Cet Arc Hub Turns Passed 21858 | . 2030 299 1239 1149 931 491 528 2955 1062 1316 2477 1020 660 1583 872 365 2881 Spaces Moved 9287 | 1 902 149 481 569 482 233 219 1202 477 592 1115 435 276 559 339 156 1100 Core 1 | . . . . . . . . . . . . . . . . . 1 Treads 1735 | . 387 . 6 . . . . 9 1 . . 11 4 5 58 156 1098 Legs 32 | 1 31 . . . . . . . . . . . . . . . . Wheels 7519 | . 484 149 475 569 482 233 219 1193 476 592 1115 424 272 554 281 . 1 Hover . | . . . . . . . . . . . . . . . . . . Flight . | . . . . . . . . . . . . . . . . . . Fastest Speed 50 | 120 115 175 175 190 175 190 205 190 220 220 205 205 205 205 160 163 50 Average Speed 199 | 120 184 175 190 190 189 190 205 205 220 220 219 210 220 216 210 163 162 Slowest Speed 250 | 120 240 175 240 190 190 190 205 250 250 220 220 250 250 250 220 163 167 Overloaded Moves . | . . . . . . . . . . . . . . . . . . Propulsion Burnouts . | . . . . . . . . . . . . . . . . . . Robots Hopped . | . . . . . . . . . . . . . . . . . . Cave-ins Triggered . | . . . . . . . . . . . . . . . . . . Exploration Rate (%) 61 | 2 97 41 51 100 91 29 25 44 60 60 86 67 8 79 76 96 98 Regions Visited 17 Branch Regions 12 Pre-discovered Areas 9 | . 2 . 1 1 1 . . . . . 4 . . . . . . Known Exits Taken 4 | . . . 1 . . . 1 1 . . . . 1 . . . . Unknown Exits Taken 13 | 1 1 1 . 1 1 1 . . 1 1 1 1 . 1 1 1 . Scrap Searched 9 | . . . . 1 . . . . 1 1 2 4 . . . . . Spaces Dug . | . . . . . . . . . . . . . . . . . . Terrain Destroyed 970 | . . 1 . . . . 17 11 1 2 . 1 . 8 8 20 901 Melee . | . . . . . . . . . . . . . . . . . . Projectile 200 | . . 1 . . . . 17 11 1 2 . 1 . 5 8 20 134 AOE 769 | . . . . . . . . . . . . . . 3 . . 766 Terrain Rammed . | . . . . . . . . . . . . . . . . . . Walls Destroyed . | . . . . . . . . . . . . . . . . . . Machines Disabled . | . . . . . . . . . . . . . . . . . . Actions | -11 -10 -10 -9 -9 -9 -8 -8 -7 -7 -7 -7 -6 -6 -6 -6 -6 -6 --------- Run | Yrd Mat Min Mat Min Exi Min Mat Fac Low Low Zio Pro Fac Ext Cet Arc Hub Total 11848 | . 1138 169 683 600 502 269 300 1690 488 604 1143 516 319 868 442 226 1891 Wait 1305 | . 113 5 51 5 . 26 52 306 . 2 18 33 17 62 21 45 549 Move 9270 | . 901 148 480 568 481 232 218 1201 476 591 1114 434 275 558 338 155 1100 Hop . | . . . . . . . . . . . . . . . . . . Pick Up 135 | . 22 1 25 2 5 . 5 27 . . 1 2 4 9 8 . 24 Fast Attach 55 | . 7 . 7 . 2 . . 6 . . 3 4 . 4 7 2 13 Attach 74 | . 2 2 5 2 3 . 1 7 . . . 3 2 5 3 . 39 Detach 23 | . 1 . 4 . 1 . . 4 . . 2 2 . 2 2 . 5 Swap 150 | . 11 5 16 4 . 6 3 30 4 4 . 14 11 28 10 . 4 Drop 138 | . 12 . 25 1 10 . 4 33 . . 5 1 1 8 16 2 20 Fire 570 | . 68 8 69 18 . 5 17 74 8 6 . 23 9 74 37 22 132 Melee . | . . . . . . . . . . . . . . . . . . Ram . | . . . . . . . . . . . . . . . . . . Kick . | . . . . . . . . . . . . . . . . . . Crush 9 | . 1 . 1 . . . . 2 . . . . . . . . 5 Escape Stasis 24 | . . . . . . . . . . . . . . 24 . . . Rewire 94 | . . . . . . . . . . . . . . 94 . . . Trap 1 | . . . . . . . . . . 1 . . . . . . . Miscellaneous . | . . . . . . . . . . . . . . . . . . Route ------- -11/Scrapyard -10/Materials (discovered 5 exits: *Mat x3 / [*Min] / [*Sub]) -10/Mines -9/Materials (discovered 5 exits: *Mat x2 / *Min / *Sto x2) -9/Mines (discovered 4 exits: *Mat x2 / *Exi / *Zio) -9/Exiles (discovered 2 exits: [*Min x2]) -8/Mines -8/Materials -7/Factory (discovered 3 exits: *Fac / *Low x2) -7/Lower Caves -7/Lower Caves -7/Zion -6/Proximity Caves -6/Factory (discovered 3 exits: Fac / [*Low] / *Ext) -6/Extension (discovered 2 exits: *Fac / *Cet) -6/Cetus (discovered 3 exits: *Fac x2 / *Arc) -6/Archives (discovered 3 exits: *Fac / *Hub x2) -6/Hub_04(d) (discovered 4 exits: *Fac x4) History --------- Turn | Location | Event 1 | -11/Scrapyard | Discovered new exit (range 0) 1 | -11/Scrapyard | Entered Materials 190 | -10/Materials | Discovered new exit (range 4) 310 | -10/Materials | Build established: Mutant 735 | -10/Materials | Discovered new exit (range 10) 998 | -10/Materials | Discovered new exit (range 10) 1056 | -10/Materials | Discovered new exit (range 7) 1631 | -10/Materials | Discovered new exit (range 9) 1958 | -10/Materials | Core integrity fell below 50% 2031 | -10/Materials | Entered Mines 2280 | -10/Mines | Assembled infested the area 2290 | -10/Mines | Discovered new exit (range 15) 2320 | -10/Mines | Received a Mining Laser from a helpful Derelict 2330 | -10/Mines | Lost 4 parts (1p1n1u1w) 2330 | -10/Mines | Entered Materials 2330 | -9/Materials | Accompanied by 1 ally 2330 | -9/Materials | Evolved 2 slots: Propulsion x1, Utility x1 2712 | -9/Materials | Discovered new exit (range 13) 2808 | -9/Materials | Identified exit to Mines 2808 | -9/Materials | Identified exit to Storage 3432 | -9/Materials | Discovered new exit (range 13) 3569 | -9/Materials | Entered Mines 3722 | -9/Mines | Learned location of Storage (-9) 3976 | -9/Mines | A Derelict revealed a hidden shortcut to a safe place 3996 | -9/Mines | Learned 2 Materials zone layouts 4006 | -9/Mines | Discovered new exit (range 10) 4220 | -9/Mines | Assisted by bots powering up and referring to "LRC-V3" 4271 | -9/Mines | Discovered new exit (range 11) 4275 | -9/Mines | Learned Materials terminal intel 4347 | -9/Mines | Received a Rocket Launcher from a helpful Derelict 4397 | -9/Mines | Deemed a non-threat by the Exiles lab entrance 4397 | -9/Mines | Discovered new exit (range 5) 4718 | -9/Mines | Entered Exiles 4718 | -9/Exiles | Accompanied by 3 allies 4743 | -9/Exiles | Discovered new exit (range 15) 4800 | -9/Exiles | Met 8R-AWN 4831 | -9/Exiles | Met EX-HEX 4943 | -9/Exiles | Met EX-DEC 4979 | -9/Exiles | Visited The Gauntlet 5190 | -9/Exiles | Learned location of Zion (-7) 5242 | -9/Exiles | Met EX-BIN 5369 | -9/Exiles | Aligned with FarCom system 5371 | -9/Exiles | Given EX-Vault access code 5415 | -9/Exiles | Opened EX-Vault 5440 | -9/Exiles | DAS Turret deployed 5457 | -9/Exiles | Found XL Autogun Array 5463 | -9/Exiles | Found Deploy-a-Sentry 5504 | -9/Exiles | Warned to stay clear of 0b10 Research branches 5624 | -9/Exiles | Discovered new exit (range 14) 5649 | -9/Exiles | Stole two prototypes: XL Autogun Array, Deploy-a-Sentry 5649 | -9/Exiles | Entered Mines 5649 | -8/Mines | Accompanied by 3 allies 5862 | -8/Mines | Discovered new exit (range 15) 6140 | -8/Mines | Entered Materials 6140 | -8/Materials | Accompanied by 1 ally 6140 | -8/Materials | Evolved 2 slots: Weapon x2 6141 | -8/Materials | Identified exit to Factory 6142 | -8/Materials | Loaded intel: 12 terminal locations 6142 | -8/Materials | Garrison activated, responded to threat 6359 | -8/Materials | DAS Turret deployed 6436 | -8/Materials | Build established: Tank 6569 | -8/Materials | Met 7R-MNS 6668 | -8/Materials | Entered Factory 6668 | -7/Factory | Accompanied by 1 ally 6668 | -7/Factory | Evolved 2 slots: Propulsion x1, Utility x1 6669 | -7/Factory | Caught up to 7R-MNS 6670 | -7/Factory | FarCom data flow suspended 7313 | -7/Factory | Discovered new exit (range 15) 7714 | -7/Factory | Cargo convoy interrupted 7820 | -7/Factory | Discovered new exit (range 7) 8003 | -7/Factory | Build established: Scavenger-Gunner 8200 | -7/Factory | Destroyed 7 combat bots 9220 | -7/Factory | Identified exit to Lower Caves 9312 | -7/Factory | Build established: Gunner 9623 | -7/Factory | Entered Lower Caves 10384 | -7/Lower Caves | Learned location of 1 exit from Factory 10384 | -7/Lower Caves | Learned Research trap positions 10384 | -7/Lower Caves | Learned Armory trap positions 10384 | -7/Lower Caves | Learned Armory stockpile data 10384 | -7/Lower Caves | Learned Armory security intel 10384 | -7/Lower Caves | Learned Research garrison access intel 10384 | -7/Lower Caves | Learned Extension garrison access intel 10643 | -7/Lower Caves | Discovered new exit (range 6) 10685 | -7/Lower Caves | Entered another Lower Caves area 10701 | -7/Lower Caves | Learned Factory terminal intel 11046 | -7/Lower Caves | Spotted B-75 Beast 11361 | -7/Lower Caves | Learned Factory emergency access door positions 11871 | -7/Lower Caves | Discovered new exit (range 15) 12001 | -7/Lower Caves | Entered Zion 12142 | -7/Zion | Given the Hacking Drone Bay 12159 | -7/Zion | Discovered new exit (range 10) 12372 | -7/Zion | Found Prototype Launcher 12372 | -7/Zion | Identified Rocket Array 12383 | -7/Zion | Found Prototype Launcher 12383 | -7/Zion | Identified Gui. Missile Launcher 12609 | -7/Zion | Learned Factory terminal intel 12810 | -7/Zion | Learned location of Data Miner (-6) 13640 | -7/Zion | Acquired unknown access codes intercepted by a Zionite 13767 | -7/Zion | Opened final containment barrier to the Deep Caves 14007 | -7/Zion | Gained Derelict followers 14478 | -7/Zion | Entered Proximity Caves 14478 | -6/Proximity Caves | Accompanied by 2 allies 14787 | -6/Proximity Caves | Attracted the attention of an 0b10 outpost 15166 | -6/Proximity Caves | Spotted B-75 Beast 15294 | -6/Proximity Caves | Destroyed B-75 Beast 15372 | -6/Proximity Caves | Learned Factory trap positions 15471 | -6/Proximity Caves | Discovered new exit (range 8) 15498 | -6/Proximity Caves | Entered Factory 15498 | -6/Factory | Evolved 2 slots: Propulsion x1, Utility x1 15499 | -6/Factory | Identified exit to Extension 15500 | -6/Factory | Identified exit to Factory 15501 | -6/Factory | Loaded intel: 78 trap records 15503 | -6/Factory | Loaded intel: 28 terminal locations 15587 | -6/Factory | Discovered new exit (range 15) 15789 | -6/Factory | Build established: Tank 16158 | -6/Factory | Entered Extension 16160 | -6/Extension | Disrupted transfer network 16229 | -6/Extension | Build established: Gunner 16275 | -6/Extension | Rescued a captive Derelict 16431 | -6/Extension | Found Hvy. Reflective Plating 16831 | -6/Extension | Spotted B-75 Beast 16862 | -6/Extension | Destroyed B-75 Beast 16892 | -6/Extension | Spotted B-75 Beast 16910 | -6/Extension | Destroyed B-75 Beast 16939 | -6/Extension | Lost 3 parts (1n1u1w) 17457 | -6/Extension | Lost 3 allies 17518 | -6/Extension | Rescued a captive Derelict 17519 | -6/Extension | Rescued a captive Derelict 17688 | -6/Extension | Discovered exit to Factory (range 10) 17690 | -6/Extension | Discovered new exit (range 6) 17741 | -6/Extension | Entered Cetus 17741 | -6/Cetus | Accompanied by 2 allies 17770 | -6/Cetus | Spotted Cetus Guard 17770 | -6/Cetus | Spotted Cetus Guard 17777 | -6/Cetus | Destroyed Cetus Guard 17777 | -6/Cetus | Spotted Cetus Guard 17793 | -6/Cetus | Destroyed Cetus Guard 17793 | -6/Cetus | Spotted Cetus Guard 17801 | -6/Cetus | Destroyed Cetus Guard 17816 | -6/Cetus | Destroyed Cetus Guard 18147 | -6/Cetus | Build established: Scavenger-Gunner 18160 | -6/Cetus | Discovered exit to Factory (range 15) 18318 | -6/Cetus | Discovered new exit (range 15) 18361 | -6/Cetus | Spotted Cetus Guard 18361 | -6/Cetus | Spotted Cetus Guard 18364 | -6/Cetus | Destroyed Cetus Guard 18364 | -6/Cetus | Spotted Cetus Guard 18369 | -6/Cetus | Spotted Cetus Guard 18376 | -6/Cetus | Destroyed Cetus Guard 18382 | -6/Cetus | Destroyed Cetus Guard 18387 | -6/Cetus | Destroyed Cetus Guard 18412 | -6/Cetus | Discovered exit to Factory (range 15) 18429 | -6/Cetus | Met Revision 17 18613 | -6/Cetus | Entered Archives 18739 | -6/Archives | Unable to access archive contents 18741 | -6/Archives | Discovered new exit (range 16) 18760 | -6/Archives | Discovered new exit (range 16) 18777 | -6/Archives | Discovered exit to Factory (range 16) 18978 | -6/Archives | Entered Hub_04(d) 19853 | -6/Hub_04(d) | Discovered exit to Factory (range 16) 20272 | -6/Hub_04(d) | Build established: Scavenger-Tank 20309 | -6/Hub_04(d) | Discovered exit to Factory (range 15) 20413 | -6/Hub_04(d) | Discovered exit to Factory (range 30) 20702 | -6/Hub_04(d) | Discovered exit to Factory (range 9) 20728 | -6/Hub_04(d) | First assault squad dispatched 20873 | -6/Hub_04(d) | Disrupted transfer network 21159 | -6/Hub_04(d) | Network Hub disabled 21160 | -6/Hub_04(d) | System corruption reached 10% 21169 | -6/Hub_04(d) | Spotted Lightning 21173 | -6/Hub_04(d) | Spotted Lightning 21176 | -6/Hub_04(d) | Spotted Lightning 21180 | -6/Hub_04(d) | Spotted Lightning 21182 | -6/Hub_04(d) | Destroyed Lightning 21183 | -6/Hub_04(d) | Spotted Lightning 21184 | -6/Hub_04(d) | Spotted Lightning 21185 | -6/Hub_04(d) | Spotted Lightning 21185 | -6/Hub_04(d) | Spotted Lightning 21187 | -6/Hub_04(d) | Spotted Lightning 21201 | -6/Hub_04(d) | Destroyed Lightning 21203 | -6/Hub_04(d) | System corruption reached 30% 21216 | -6/Hub_04(d) | Destroyed Lightning 21222 | -6/Hub_04(d) | Destroyed Lightning 21228 | -6/Hub_04(d) | Destroyed Lightning 21228 | -6/Hub_04(d) | Destroyed Lightning 21233 | -6/Hub_04(d) | Destroyed Lightning 21233 | -6/Hub_04(d) | Destroyed Lightning 21241 | -6/Hub_04(d) | Destroyed Lightning 21262 | -6/Hub_04(d) | Destroyed 13 combat bots 21270 | -6/Hub_04(d) | Lost 9 parts (2n4u3w) 21498 | -6/Hub_04(d) | Core integrity fell below 50% 21540 | -6/Hub_04(d) | Network Hub disabled 21574 | -6/Hub_04(d) | Network Hub disabled 21688 | -6/Hub_04(d) | Network Hub disabled 21853 | -6/Hub_04(d) | Core integrity fell below 20% 21859 | -6/Hub_04(d) | Destroyed by G-50 Soldier with Heavy Laser Last Messages --------------- 21847_ G-50 Soldier knocked back. 21847_ K-01 Serf collects debris. 21848_ Hvy. Flak Cannon destroyed. 21850_ Coil Gun destroyed. 21850_ Imp. Cooling System destroyed. 21850_ Acquired Gauss Rifle. 21850_ K-01 Serf collects debris. 21850_ Gauss Rifle destroyed. 21851_ Hvy. Flak Cannon destroyed. 21852_ Imp. Deuterium Engine destroyed. 21853_ Dropped Huge Storage Unit. 21853_ Enh. Optical Array destroyed. 21853_ K-01 Serf collects debris. 21854_ Acquired Adv. Treads. 21856_ K-01 Serf collects debris. 21856_ Adv. Treads destroyed. 21858_ Acquired Blade Saw. 21858_ M-28 Smith repairs G-50 Soldier. 21859_ System corrupted: Component data lost. 21859_ The unstable cave ceiling collapses. Map ----- +----------------------------------------------------+ | # #??# = ###########!=#!# " !#" ## | | # !!! #??# #??# + !#[# " #" ## " | | # !!! #??# #??# # !#*# #" !## | | + !! #??# #??# """ "#%%#####+##% !#=" | | # #??# #??# ?#! *==!* %[*!!# | | # #??# #??# """ ?#%!|% ! ! * # " | | # #??# #??# ??#=!######## # " | | % #############??# #??#####??#[[##???# ## ## " | | "#####???????????# #??????##?#=!##???# ## ## | | =! #???????????# ####### ###!%######"## "# " | | // #?########### #]!! ##==## # ## " | | ! // #?# ] # #!! """ ## ##!!! # ## " | | !*// #?#"""" # #!! ## ##! ! # ## | | ##"""" # !#%!! """ ## ##!! # ## | | ###"""" %+= !+%!!! ##% ## + ## ! | | #?#"""" *# !#!![ ## ## # # | | = #?# # !#%!! " " ## ####""""" # ### | | ####"#?#! # #!! "T" ## # """""++##### | | ???? ## # # """ ## # " % | | ##################* ##+#####;;" """"" | | =%! ### " " | | [! g " """"" | | g % ####% ## " | | ################+### %*%g! ## ## " | | ???????????# # m%k ** ## ## " | | ???????????# g@*=%g## ## " ! | | ???????????# %g *%g # # " | | ???????????# """" ""=" %+%! # " = | | ???????????# """"# """"! # * # """""""""""" | | ???????????# """"# """" #! # | | ???????????# """"# """" ###### ? | | ???????????# # #???? ###########?? | | ???????????#########?##########????##????????????? | | ?????????????????????????????????????????????????? | | ?????????????????????????????????????????????????? | | ?????????????????????????????????????????????????? | | ?????????????????????????????????????????????????? | | ?????????????????????????????????????????????????? | | ?????????????????????????????????????????????????? | | | | | | | | | | | | | | | | | | | | | | | +----------------------------------------------------+ Best States ------------- Heat Dissipation 64 Energy Generation 16 Energy Capacity 290 Matter Stores 300 Matter Capacity 300 Sight Range 16 Terrain Scan Density 10 Armor Coverage 1350 Resistance: TH 25 Utility Shielding 66 Weapon Shielding 90 Evasion (%) 55 Targeting Accuracy 8 Recoil Reduction 5 Kinecelleration 30 Item Schematics ----------------- Huge Storage Unit | -10/Materials | Hacked Humpback | -8/Materials | Scanalyzed Hrd. Heavy Armor Plating | -7/Factory | Scanalyzed Variable Charge Gun | -7/Zion | Archive Med. Treads | -7/Zion | Archive Imp. Reaction Control System | -7/Zion | Archive Mak. Hammer | -7/Zion | Archive Force Field | -7/Zion | Archive Hvy. Ion Cannon | -7/Zion | Archive Flexi-carbon Leg | -7/Zion | Archive Corruption Screen | -7/Zion | Archive Imp. Proton Missile Launcher | -7/Zion | Archive Mak. Light Armor Plating | -7/Zion | Archive KE Penetrator | -7/Zion | Archive Adv. Sensor Array | -7/Zion | Archive Transmission Jammer | -7/Zion | Archive Core Analyzer | -7/Zion | Archive Enh. Optical Array | -7/Zion | Archive Robot Schematics ------------------ S-27 Virus | -7/Zion | Archive X-62 Marksman | -7/Zion | Archive M-28 Smith | -7/Zion | Archive Fabricated ------------ Nothing Alien Tech Used ----------------- None Achievements -------------- Revising The Future Z1$+NX3F=JRE3_ZNQR Challenges ------------ None Game ------ Seed MasterMyomerMapper Manual? 0 Play Time 04:02:43 Cumulative 79.5 hours Start 2024.04.18 @ 20:11:14 End 2024.04.21 @ 22:29:36 Sessions 2 Manual Loads 0 Difficulty Rogue Special Mode None Game No. 41 Rogue 41 Adventurer 0 Explorer 0 Win Type - Total 4 Types 4/0/0/0/0/0/0/0/0 Lore% 43 Gallery% 42 Achievement% 42 Wizard Run 0 Options --------- Layout 0 ASCII 0 Keyboard 0 Movement Numpad Keybinds 0 Fullscreen 2 Font 18/SmallcapsGlow Map View 76x50 Zoom Use 0% Tactical HUD 1 Map Filters NONE Filters NONE Steam 1 RUN: 4be92685-fe4c-417a-8d4c-a093847f7f26